fUST/lending_fUST_20250707
["ID","MTS","AMOUNT","RATE_DAILY","PERIOD"]
[370013736,1751832640004,-493.65,0.00017123,2]
[370013737,1751832640015,-460.0,0.00017123,2]
[370013738,1751832640026,-460.0,0.00017123,2]
[370013739,1751832640036,-460.0,0.00017123,2]
[370013740,1751832640047,-460.0,0.00017123,2]
[370013741,1751832640058,-460.0,0.00017123,2]
[370013742,1751832640068,-460.0,0.00017123,2]
[370013743,1751832640080,-460.0,0.00017123,2]
[370013744,1751832640091,-460.0,0.00017123,2]
[370013745,1751832640103,-2387.86,0.00017123,2]
[370013746,1751832640115,-460.0,0.00017123,2]
[370013747,1751832640126,-668.7,0.00017123,2]
[370013748,1751832640138,-589.98,0.00017123,2]
[370013749,1751832640150,-460.0,0.00017123,2]
[370013750,1751832640160,-764.76,0.00017123,2]
[370013751,1751832640173,-680.74,0.00017123,2]
[370013753,1751832640190,-460.0,0.00017124,2]
[370013755,1751832640201,-460.0,0.00017125,2]
[370013756,1751832640211,-500.0,0.00017393,2]
[370013758,1751832640223,-500.0,0.00017393,2]
[370013759,1751832640234,-500.0,0.00017393,2]
[370013760,1751832640245,-500.0,0.00017393,2]
[370013761,1751832640257,-500.0,0.00017393,2]
[370013762,1751832640268,-508.68933873,0.00017393,2]
[370013763,1751832640279,-153.88875907,0.00017393,2]
[370013764,1751832640291,-500.0,0.00017393,2]
[370013766,1751832640302,-500.0,0.00017393,2]
[370013767,1751832640313,-298.70852189,0.00017393,2]
[370013768,1751832640324,-500.0,0.00017393,2]
[370013769,1751832640336,-300.0,0.00017393,2]
[370013770,1751832640347,-500.0,0.00017393,2]
[370013771,1751832640358,-334.39639479,0.00017393,2]
[370013772,1751832640369,-461.05608099,0.00017393,2]
[370013773,1751832640379,-500.0,0.00017393,2]
[370013774,1751832640391,-350.83907609,0.00017393,2]
[370013775,1751832640402,-500.0,0.00017393,2]
[370013776,1751832640412,-500.0,0.00017393,2]
[370013777,1751832640423,-500.0,0.00017393,2]
[370013778,1751832640434,-274.07803993,0.00017393,2]
[370013779,1751832640444,-500.0,0.00017393,2]
[370013780,1751832640456,-500.0,0.00017393,2]
[370013781,1751832640468,-500.0,0.00017393,2]
[370013782,1751832640479,-500.0,0.00017393,2]
[370013783,1751832640490,-852.54,0.00017395,2]
[370013784,1751832640502,-460.0,0.00017396,2]
[370013785,1751832640514,-460.0,0.00017396,2]
[370013786,1751832640524,-460.0,0.00017396,2]
[370013787,1751832640537,-493.65,0.00017396,2]
[370013788,1751832640548,-460.0,0.00017396,2]
[370013789,1751832640559,-460.0,0.00017396,2]
[370013790,1751832640570,-460.0,0.00017396,2]
[370013791,1751832640581,-1607.05,0.00017396,2]
[370013792,1751832640593,-1172.36,0.00017396,2]
[370013793,1751832640604,-173.338187,0.00017396,2]
[370013794,1751832640615,-568.27,0.00017396,2]
[370013795,1751832640627,-460.0,0.00017396,2]
[370013796,1751832640637,-460.0,0.00017396,2]
[370013797,1751832640648,-1445.34,0.00017396,2]
[370013798,1751832640659,-460.0,0.00017396,2]
[370013799,1751832640670,-460.0,0.00017396,2]
[370013800,1751832640681,-1464.07,0.00017396,2]
[370013801,1751832640691,-1056.39,0.00017396,2]
[370013802,1751832640702,-1551.27,0.00017396,2]
[370013803,1751832640920,-889.13,0.00017396,2]
[370013804,1751832640931,-460.0,0.00017396,2]
[370013805,1751832640942,-460.0,0.00017396,2]
[370013806,1751832640953,-460.0,0.00017396,2]
[370013807,1751832640963,-460.0,0.00017396,2]
[370013808,1751832640973,-522.45,0.00017396,2]
[370013809,1751832640983,-460.0,0.00017396,2]
[370013810,1751832640993,-583.77,0.00017396,2]
[370013811,1751832641004,-794.24,0.00017396,2]
[370013812,1751832641013,-460.0,0.00017396,2]
[370013813,1751832641023,-460.0,0.00017396,2]
[370013814,1751832641033,-198.83,0.00017397,2]
[370013815,1751832641045,-460.0,0.00017397,2]
[370013816,1751832641055,-460.0,0.00017397,2]
[370013817,1751832641066,-460.0,0.00017397,2]
[370013818,1751832641075,-460.0,0.00017397,2]
[370013819,1751832641085,-2387.86,0.00017397,2]
[370013820,1751832641094,-460.0,0.00017397,2]
[370013821,1751832641104,-668.7,0.00017397,2]
[370013822,1751832641114,-589.98,0.00017397,2]
[370013823,1751832641123,-518.41,0.00017397,2]
[370013824,1751832641133,-764.76,0.00017397,2]
[370013825,1751832641142,-680.74,0.00017397,2]
[370013826,1751832641152,-408.07753291,0.00017399,2]
[370013827,1751832641161,-193.67896373,0.00017529,2]
[370013828,1751832641172,-500.0,0.00017554,2]
[370013829,1751832641195,-500.0,0.00017554,2]
[370013830,1751832641206,-500.0,0.00017554,2]
[370013831,1751832641217,-505.86192681,0.00017554,2]
[370013832,1751832641227,-500.0,0.00017565,2]
[370013833,1751832641238,-497.06142972,0.00017565,2]
[370013834,1751832641248,-500.0,0.00017565,2]
[370013835,1751832641258,-500.85840275,0.00017565,2]
[370013836,1751832641268,-500.0,0.00017577,2]
[370013837,1751832641278,-459.85765792,0.00017577,2]
[370013838,1751832641289,-411.9007396,0.00017589,2]
[370013839,1751832641300,-500.0,0.00017589,2]
[370013840,1751832641312,-500.0,0.00017589,2]
[370013841,1751832641322,-500.0,0.00017589,2]
[370013842,1751832641332,-852.54,0.00017669,2]
[370013843,1751832641342,-460.0,0.0001767,2]
[370013844,1751832641352,-460.0,0.0001767,2]
[370013845,1751832641363,-493.65,0.0001767,2]
[370013846,1751832641373,-460.0,0.0001767,2]
[370013847,1751832641383,-460.0,0.0001767,2]
[370013848,1751832641393,-1607.05,0.0001767,2]
[370013849,1751832641403,-1172.36,0.0001767,2]
[370013850,1751832641412,-460.0,0.0001767,2]
[370013851,1751832641422,-460.0,0.0001767,2]
[370013852,1751832641433,-1445.34,0.0001767,2]
[370013853,1751832641443,-460.0,0.0001767,2]
[370013854,1751832641453,-460.0,0.0001767,2]
[370013855,1751832641463,-1464.07,0.0001767,2]
[370013856,1751832641473,-1056.39,0.0001767,2]
[370013857,1751832641483,-1551.27,0.0001767,2]
[370013858,1751832641494,-889.13,0.0001767,2]
[370013859,1751832641503,-460.0,0.0001767,2]
[370013860,1751832641513,-460.0,0.0001767,2]
[370013861,1751832641522,-460.0,0.0001767,2]
[370013862,1751832641532,-460.0,0.0001767,2]
[370013863,1751832641542,-460.0,0.0001767,2]
[370013864,1751832641551,-583.77,0.0001767,2]
[370013865,1751832641562,-794.24,0.0001767,2]
[370013866,1751832641571,-460.0,0.0001767,2]
[370013867,1751832641581,-460.0,0.00017671,2]
[370013868,1751832641592,-460.0,0.00017671,2]
[370013869,1751832641602,-465.04409279,0.00017671,2]
[370013870,1751832641612,-460.0,0.00017671,2]
[370013871,1751832641622,-2387.86,0.00017671,2]
[370013872,1751832641632,-460.0,0.00017671,2]
[370013873,1751832641641,-668.7,0.00017671,2]
[370013874,1751832641651,-589.98,0.00017671,2]
[370013875,1751832641661,-764.76,0.00017671,2]
[370013876,1751832641670,-680.74,0.00017671,2]
[370013877,1751832641680,-460.0,0.00017672,2]
[370013878,1751832641690,-160.0,0.0001782,2]
[370013879,1751832641699,-160.0,0.0001782,2]
[370013880,1751832641709,-160.0,0.0001782,2]
[370013881,1751832641719,-214.03875559,0.0001782,2]
[370013882,1751832641729,-160.0,0.0001782,2]
[370013883,1751832641738,-837.69501035,0.0001782,2]
[370013884,1751832641748,-12582.33653824,0.0001782,2]
[370013885,1751832641758,-160.0,0.0001782,2]
[370013886,1751832641767,-230.45878613,0.0001782,2]
[370013887,1751832641777,-160.0,0.0001782,2]
[370013888,1751832641791,-160.0,0.0001782,2]
[370013889,1751832641801,-160.0,0.0001782,2]
[370013890,1751832641811,-215.18120504,0.0001782,2]
[370013891,1751832641821,-848.15551661,0.0001782,2]
[370013892,1751832641831,-500.0,0.00017942,2]
[370013893,1751832641841,-852.54,0.00017943,2]
[370013894,1751832641850,-460.0,0.00017944,2]
[370013895,1751832641860,-460.0,0.00017944,2]
[370013896,1751832641870,-493.65,0.00017944,2]
[370013897,1751832641879,-460.0,0.00017944,2]
[370013898,1751832641888,-460.0,0.00017944,2]
[370013899,1751832641898,-1607.05,0.00017944,2]
[370013900,1751832641908,-1172.36,0.00017944,2]
[370013901,1751832641918,-460.0,0.00017944,2]
[370013902,1751832641928,-530.68316303,0.00017944,2]
[370013903,1751832641938,-1445.34,0.00017944,2]
[370013904,1751832641947,-157.86,0.00017944,2]
[370013905,1751832641957,-460.0,0.00017944,2]
[370013906,1751832641967,-1464.07,0.00017944,2]
[370013907,1751832641976,-1056.39,0.00017944,2]
[370013908,1751832641986,-1551.27,0.00017944,2]
[370013909,1751832641996,-889.13,0.00017944,2]
[370013910,1751832642006,-460.0,0.00017944,2]
[370013911,1751832642016,-460.0,0.00017944,2]
[370013912,1751832642027,-460.0,0.00017944,2]
[370013913,1751832642036,-460.0,0.00017944,2]
[370013914,1751832642046,-583.77,0.00017944,2]
[370013915,1751832642056,-794.24,0.00017944,2]
[370013916,1751832642066,-460.0,0.00017944,2]
[370013917,1751832642076,-460.0,0.00017945,2]
[370013918,1751832642085,-460.0,0.00017945,2]
[370013919,1751832642095,-460.0,0.00017945,2]
[370013920,1751832642105,-2387.86,0.00017945,2]
[370013921,1751832642115,-460.0,0.00017945,2]
[370013922,1751832642124,-668.7,0.00017945,2]
[370013923,1751832642134,-589.98,0.00017945,2]
[370013924,1751832642144,-764.76,0.00017945,2]
[370013925,1751832642154,-680.74,0.00017945,2]
[370013926,1751832642163,-366.6379324,0.00018082,2]
[370013927,1751832642175,-178.1719849,0.00018082,2]
[370013928,1751832642185,-1000.0,0.00018102,2]
[370013929,1751832642194,-1000.0,0.00018102,2]
[370013930,1751832642204,-1004.8074354,0.00018113,2]
[370013931,1751832642215,-500.0,0.00018113,2]
[370013932,1751832642224,-1650.35232668,0.0001812,2]
[370013933,1751832642235,-500.0,0.00018123,2]
[370013934,1751832642246,-1000.0,0.00018125,2]
[370013935,1751832642258,-366.6379324,0.00018137,2]
[370013936,1751832642267,-366.6379324,0.00018137,2]
[370013937,1751832642277,-1000.0,0.00018137,2]
[370013938,1751832642286,-500.0,0.00018137,2]
[370013939,1751832642296,-1000.0,0.00018137,2]
[370013940,1751832642305,-533.0,0.0001815,2]
[370013941,1751832642315,-11061.30287679,0.000182,2]
[370013942,1751832642324,-11061.30287663,0.000182,2]
[370013943,1751832642333,-852.54,0.00018217,2]
[370013944,1751832642345,-460.0,0.00018218,2]
[370013945,1751832642355,-460.0,0.00018218,2]
[370013946,1751832642364,-493.65,0.00018218,2]
[370013947,1751832642374,-460.0,0.00018218,2]
[370013948,1751832642383,-1607.05,0.00018218,2]
[370013949,1751832642392,-1172.36,0.00018218,2]
[370013950,1751832642402,-460.0,0.00018218,2]
[370013951,1751832642411,-1445.34,0.00018218,2]
[370013952,1751832642420,-460.0,0.00018218,2]
[370013953,1751832642429,-1464.07,0.00018218,2]
[370013954,1751832642439,-1056.39,0.00018218,2]
[370013955,1751832642448,-1551.27,0.00018218,2]
[370013956,1751832642457,-889.13,0.00018218,2]
[370013957,1751832642467,-460.0,0.00018218,2]
[370013958,1751832642476,-460.0,0.00018218,2]
[370013959,1751832642485,-460.0,0.00018218,2]
[370013960,1751832642495,-460.0,0.00018218,2]
[370013961,1751832642504,-583.77,0.00018218,2]
[370013962,1751832642513,-794.24,0.00018218,2]
[370013963,1751832642523,-460.0,0.00018219,2]
[370013964,1751832642532,-460.0,0.00018219,2]
[370013965,1751832642541,-460.0,0.00018219,2]
[370013966,1751832642551,-2387.86,0.00018219,2]
[370013967,1751832642560,-460.0,0.00018219,2]
[370013968,1751832642569,-668.7,0.00018219,2]
[370013969,1751832642579,-589.98,0.00018219,2]
[370013970,1751832642589,-764.76,0.00018219,2]
[370013971,1751832642599,-680.74,0.00018219,2]
[370013972,1751832642609,-250.0,0.00018229,2]
[370013973,1751832642618,-250.0,0.00018313,2]
[370013974,1751832642628,-690.642,0.00018317,2]
[370013975,1751832642637,-207.4,0.00018317,2]
[370013976,1751832642647,-5000.0,0.00018317,2]
[370013977,1751832642657,-3525.85516033,0.00018317,2]
[370013978,1751832642666,-794.7479938,0.00018372,2]
[370013979,1751832642675,-250.0,0.00018396,2]
[370013980,1751832642685,-420.0,0.00018402,2]
[370013981,1751832642694,-420.0,0.00018402,2]
[370013982,1751832642704,-420.0,0.00018402,2]
[370013983,1751832642713,-11061.30287663,0.00018452,2]
[370013984,1751832642722,-250.0,0.00018479,2]
[370013985,1751832642732,-1000.0,0.0001849,2]
[370013986,1751832642741,-852.54,0.00018491,2]
[370013987,1751832642751,-460.0,0.00018492,2]
[370013988,1751832642761,-460.0,0.00018492,2]
[370013989,1751832642770,-493.65,0.00018492,2]
[370013990,1751832642779,-460.0,0.00018492,2]
[370013991,1751832642789,-1607.05,0.00018492,2]
[370013992,1751832642798,-1172.36,0.00018492,2]
[370013993,1751832642808,-460.0,0.00018492,2]
[370013994,1751832642817,-1445.34,0.00018492,2]
[370013995,1751832642827,-460.0,0.00018492,2]
[370013996,1751832642838,-1464.07,0.00018492,2]
[370013997,1751832642847,-1056.39,0.00018492,2]
[370013998,1751832642857,-1551.27,0.00018492,2]
[370013999,1751832642867,-889.13,0.00018492,2]
[370014000,1751832642876,-460.0,0.00018492,2]
[370014001,1751832642885,-462.43569344,0.00018492,2]
[370014002,1751832642895,-460.0,0.00018492,2]
[370014003,1751832642904,-460.0,0.00018492,2]
[370014004,1751832642913,-583.77,0.00018492,2]
[370014005,1751832642923,-794.24,0.00018492,2]
[370014006,1751832642932,-460.0,0.00018493,2]
[370014007,1751832642942,-460.0,0.00018493,2]
[370014008,1751832642951,-460.0,0.00018493,2]
[370014010,1751832642960,-2387.86,0.00018493,2]
[370014012,1751832642970,-460.0,0.00018493,2]
[370014014,1751832642979,-668.7,0.00018493,2]
[370014016,1751832642988,-589.98,0.00018493,2]
[370014017,1751832642998,-764.76,0.00018493,2]
[370014019,1751832643007,-1680.0,0.00018493,2]
[370014021,1751832643017,-680.74,0.00018493,2]
[370014023,1751832643027,-250.0,0.00018563,2]
[370014024,1751832643036,-366.6379324,0.00018575,2]
[370014026,1751832643045,-500.0,0.00018616,2]
[370014027,1751832643055,-250.0,0.00018646,2]
[370014028,1751832643064,-1500.0,0.0001865,2]
[370014029,1751832643073,-1500.0,0.00018673,2]
[370014031,1751832643082,-426.75408083,0.00018685,2]
[370014032,1751832643092,-1000.0,0.00018685,2]
[370014033,1751832643101,-11061.30287663,0.00018728,2]
[370014034,1751832643110,-250.0,0.0001873,2]
[370014035,1751832643120,-852.54,0.00018765,2]
[370014036,1751832643129,-460.0,0.00018766,2]
[370014037,1751832643139,-460.0,0.00018766,2]
[370014038,1751832643148,-493.65,0.00018766,2]
[370014039,1751832643157,-460.0,0.00018766,2]
[370014041,1751832643167,-1607.05,0.00018766,2]
[370014042,1751832643179,-1172.36,0.00018766,2]
[370014043,1751832643189,-460.0,0.00018766,2]
[370014044,1751832643198,-1445.34,0.00018766,2]
[370014045,1751832643208,-172.95,0.00018766,2]
[370014046,1751832643217,-1464.07,0.00018766,2]
[370014047,1751832643227,-1056.39,0.00018766,2]
[370014048,1751832643237,-1551.27,0.00018766,2]
[370014049,1751832643246,-889.13,0.00018766,2]
[370014050,1751832643255,-460.0,0.00018766,2]
[370014051,1751832643266,-460.0,0.00018766,2]
[370014052,1751832643275,-583.77,0.00018766,2]
[370014053,1751832643285,-460.0,0.00018766,2]
[370014054,1751832643294,-794.24,0.00018766,2]
[370014055,1751832643303,-460.0,0.00018767,2]
[370014056,1751832643313,-344.72764828,0.00018767,2]
[370014057,1751832643323,-460.0,0.00018767,2]
[370014058,1751832643333,-2387.86,0.00018767,2]
[370014059,1751832643342,-460.0,0.00018767,2]
[370014060,1751832643352,-668.7,0.00018767,2]
[370014061,1751832643363,-589.98,0.00018767,2]
[370014062,1751832643372,-764.76,0.00018767,2]
[370014063,1751832643382,-680.74,0.00018767,2]
[370014064,1751832643391,-250.0,0.00018813,2]
[370014065,1751832643400,-5000.0,0.00018865,2]
[370014066,1751832643410,-250.0,0.00018897,2]
[370014067,1751832643420,-460.0,0.00018899,2]
[370014068,1751832643429,-460.0,0.00018899,2]
[370014069,1751832643439,-460.0,0.00018899,2]
[370014070,1751832643449,-1283.92,0.00018899,2]
[370014071,1751832643458,-460.0,0.00018899,2]
[370014072,1751832643468,-748.45,0.00018899,2]
[370014073,1751832643478,-2166.15,0.00018899,2]
[370014074,1751832643488,-620.0,0.00018899,2]
[370014075,1751832643497,-5772.25695483,0.000189,2]
[370014076,1751832643507,-250.0,0.0001898,2]
[370014077,1751832643517,-1277.934315,0.00019,2]
[370014078,1751832643526,-11061.30287663,0.00019003,2]
[370014079,1751832643536,-1500.0,0.00019038,2]
[370014080,1751832643546,-852.54,0.00019039,2]
[370014081,1751832643555,-460.0,0.0001904,2]
[370014082,1751832643565,-460.0,0.0001904,2]
[370014083,1751832643574,-493.65,0.0001904,2]
[370014084,1751832643584,-460.0,0.0001904,2]
[370014086,1751832643594,-1607.05,0.0001904,2]
[370014087,1751832643604,-1172.36,0.0001904,2]
[370014088,1751832643613,-460.0,0.0001904,2]
[370014089,1751832643623,-1445.34,0.0001904,2]
[370014090,1751832643633,-1464.07,0.0001904,2]
[370014091,1751832643648,-1056.39,0.0001904,2]
[370014092,1751832643659,-1551.27,0.0001904,2]
[370014093,1751832643668,-889.13,0.0001904,2]
[370014094,1751832643678,-460.0,0.0001904,2]
[370014095,1751832643687,-460.0,0.0001904,2]
[370014096,1751832643698,-583.77,0.0001904,2]
[370014097,1751832643707,-460.0,0.0001904,2]
[370014098,1751832643717,-794.24,0.0001904,2]
[370014099,1751832643726,-460.0,0.00019041,2]
[370014100,1751832643736,-460.0,0.00019041,2]
[370014101,1751832643746,-2387.86,0.00019041,2]
[370014102,1751832643756,-460.0,0.00019041,2]
[370014103,1751832643769,-668.7,0.00019041,2]
[370014104,1751832643779,-589.98,0.00019041,2]
[370014105,1751832643788,-764.76,0.00019041,2]
[370014106,1751832643797,-680.74,0.00019041,2]
[370014107,1751832643807,-250.0,0.00019063,2]
[370014108,1751832643817,-1650.35232667,0.00019065,2]
[370014109,1751832643826,-250.0,0.00019147,2]
[370014110,1751832643836,-460.0,0.00019173,2]
[370014111,1751832643846,-460.0,0.00019173,2]
[370014112,1751832643855,-460.0,0.00019173,2]
[370014113,1751832643864,-1283.92,0.00019173,2]
[370014114,1751832643874,-460.0,0.00019173,2]
[370014115,1751832643883,-748.45,0.00019173,2]
[370014116,1751832643893,-2166.15,0.00019173,2]
[370014117,1751832643902,-620.0,0.00019173,2]
[370014118,1751832643912,-151.0,0.00019178,2]
[370014119,1751832643921,-151.0,0.00019178,2]
[370014120,1751832643930,-666.0,0.00019178,2]
[370014121,1751832643940,-709.880062,0.00019178,2]
[370014122,1751832644132,-55231.2461848,0.00019178,2]
[370014123,1751832644142,-151.0,0.00019205,2]
[370014124,1751832644151,-198.59516479,0.00019205,2]
[370014125,1751832644161,-2000.0,0.00019221,2]
[370014126,1751832644170,-250.0,0.0001923,2]
[370014127,1751832644183,-151.0,0.00019233,2]
[370014128,1751832644192,-151.0,0.0001926,2]
[370014129,1751832644202,-11061.30287663,0.00019279,2]
[370014130,1751832644211,-222.14460977,0.00019288,2]
[370014131,1751832644222,-852.54,0.00019313,2]
[370014132,1751832644231,-250.0,0.00019314,2]
[370014133,1751832644240,-460.0,0.00019314,2]
[370014134,1751832644250,-393.09835549,0.00019314,2]
[370014135,1751832644260,-493.65,0.00019314,2]
[370014136,1751832644269,-460.0,0.00019314,2]
[370014137,1751832644278,-1607.05,0.00019314,2]
[370014138,1751832644287,-1172.36,0.00019314,2]
[370014139,1751832644296,-460.0,0.00019314,2]
[370014140,1751832644306,-1445.34,0.00019314,2]
[370014141,1751832644316,-1464.07,0.00019314,2]
[370014142,1751832644325,-1056.39,0.00019314,2]
[370014143,1751832644334,-1551.27,0.00019314,2]
[370014144,1751832644344,-889.13,0.00019314,2]
[370014145,1751832644353,-460.0,0.00019314,2]
[370014146,1751832644363,-460.0,0.00019314,2]
[370014147,1751832644372,-460.0,0.00019314,2]
[370014148,1751832644381,-583.77,0.00019314,2]
[370014149,1751832644391,-794.24,0.00019314,2]
[370014150,1751832644400,-460.0,0.00019315,2]
[370014151,1751832644409,-460.0,0.00019315,2]
[370014152,1751832644419,-2387.86,0.00019315,2]
[370014153,1751832644429,-460.0,0.00019315,2]
[370014155,1751832644438,-668.7,0.00019315,2]
[370014156,1751832644447,-589.98,0.00019315,2]
[370014157,1751832644456,-764.76,0.00019315,2]
[370014158,1751832644466,-680.74,0.00019315,2]
[370014159,1751832644475,-366.6379324,0.00019315,2]
[370014160,1751832644485,-500.0,0.00019329,2]
[370014161,1751832644494,-500.0,0.00019329,2]
[370014162,1751832644504,-247.54090175,0.00019329,2]
[370014163,1751832644513,-500.0,0.00019329,2]
[370014164,1751832644522,-611.26190131,0.00019329,2]
[370014165,1751832644531,-500.0,0.00019329,2]
[370014166,1751832644540,-500.0,0.00019329,2]
[370014167,1751832644550,-404.88493777,0.00019329,2]
[370014168,1751832644559,-500.0,0.00019329,2]
[370014169,1751832644568,-500.0,0.00019329,2]
[370014170,1751832644578,-500.0,0.00019329,2]
[370014171,1751832644587,-500.0,0.00019329,2]
[370014172,1751832644597,-500.0,0.00019329,2]
[370014173,1751832644606,-500.0,0.00019329,2]
[370014174,1751832644616,-500.0,0.00019329,2]
[370014175,1751832644625,-500.0,0.00019329,2]
[370014176,1751832644635,-46903.60374781,0.00019329,2]
[370014177,1751832644644,-2271.5339855,0.00019357,2]
[370014178,1751832644654,-250.0,0.00019397,2]
[370014179,1751832644663,-366.6379324,0.00019397,2]
[370014180,1751832644673,-646.0,0.00019402,2]
[370014181,1751832644683,-2152.0,0.00019402,2]
[370014182,1751832644692,-168.0,0.00019411,2]
[370014183,1751832644701,-5000.0,0.00019413,2]
[370014184,1751832644711,-460.0,0.00019447,2]
[370014185,1751832644720,-460.0,0.00019447,2]
[370014186,1751832644729,-460.0,0.00019447,2]
[370014187,1751832644739,-1283.92,0.00019447,2]
[370014188,1751832644748,-460.0,0.00019447,2]
[370014189,1751832644758,-748.45,0.00019447,2]
[370014190,1751832644767,-2166.15,0.00019447,2]
[370014191,1751832644778,-620.0,0.00019447,2]
[370014192,1751832644788,-366.6379324,0.00019452,2]
[370014193,1751832644798,-366.6379324,0.00019452,2]
[370014194,1751832644808,-366.6379324,0.00019452,2]
[370014195,1751832644818,-366.6379324,0.00019452,2]
[370014196,1751832644827,-2271.5339856,0.0001947,2]
[370014197,1751832644836,-250.0,0.00019481,2]
[370014198,1751832644846,-1000.0,0.000195,2]
[370014199,1751832644856,-168.0,0.00019511,2]
[370014200,1751832644865,-723.451,0.00019537,2]
[370014201,1751832644875,-11061.30287663,0.00019555,2]
[370014202,1751832644884,-250.0,0.00019564,2]
[370014203,1751832644893,-168.0,0.00019569,2]
[370014204,1751832644903,-2000.0,0.00019586,2]
[370014205,1751832644912,-852.54,0.00019587,2]
[370014206,1751832644922,-460.0,0.00019588,2]
[370014207,1751832644932,-493.65,0.00019588,2]
[370014208,1751832644941,-460.0,0.00019588,2]
[370014209,1751832644951,-1607.05,0.00019588,2]
[370014210,1751832644960,-1172.36,0.00019588,2]
[370014211,1751832644970,-460.0,0.00019588,2]
[370014212,1751832644979,-1445.34,0.00019588,2]
[370014213,1751832644988,-1464.07,0.00019588,2]
[370014214,1751832644999,-1056.39,0.00019588,2]
[370014215,1751832645008,-1551.27,0.00019588,2]
[370014216,1751832645017,-889.13,0.00019588,2]
[370014217,1751832645027,-460.0,0.00019588,2]
[370014218,1751832645036,-460.0,0.00019588,2]
[370014219,1751832645046,-583.77,0.00019588,2]
[370014220,1751832645055,-460.0,0.00019588,2]
[370014221,1751832645064,-794.24,0.00019588,2]
[370014222,1751832645074,-460.0,0.00019589,2]
[370014223,1751832645083,-460.0,0.00019589,2]
[370014224,1751832645100,-2387.86,0.00019589,2]
[370014225,1751832645111,-460.0,0.00019589,2]
[370014226,1751832645120,-668.7,0.00019589,2]
[370014227,1751832645130,-589.98,0.00019589,2]
[370014228,1751832645140,-764.76,0.00019589,2]
[370014229,1751832645149,-680.74,0.00019589,2]
[370014230,1751832645159,-212.2,0.00019593,3]
[370014231,1751832645169,-160.7600483,0.00019596,2]
[370014232,1751832645182,-641.0,0.000196,2]
[370014233,1751832645192,-500.0,0.00019624,2]
[370014234,1751832645202,-501.26556098,0.00019624,2]
[370014235,1751832645212,-500.0,0.00019624,2]
[370014236,1751832645221,-500.0,0.0001963,2]
[370014237,1751832645230,-366.6379324,0.00019644,2]
[370014238,1751832645240,-366.6379324,0.00019644,2]
[370014239,1751832645249,-366.3175567,0.00019644,2]
[370014240,1751832645259,-250.0,0.00019647,2]
[370014241,1751832645269,-500.0,0.00019665,2]
[370014242,1751832645278,-366.6379324,0.00019671,2]
[370014243,1751832645288,-215.0738,0.00019686,2]
[370014244,1751832645298,-168.0,0.00019707,2]
[370014245,1751832645307,-460.0,0.00019721,2]
[370014246,1751832645316,-460.0,0.00019721,2]
[370014247,1751832645326,-460.0,0.00019721,2]
[370014248,1751832645335,-1283.92,0.00019721,2]
[370014249,1751832645345,-460.0,0.00019721,2]
[370014250,1751832645355,-748.45,0.00019721,2]
[370014251,1751832645364,-2166.15,0.00019721,2]